bitfinex/quotes_ETHUSD_20250720
["timestamp","ask_amount","ask_price","bid_price","bid_amount"]
[1752996054367,2.33045737,3665.7,3665.6,0.136]
[1752996055698,5.05844929,3665.7,3665.6,0.136]
[1752996055998,2.33045737,3665.7,3665.6,0.136]
[1752996056202,1.86305737,3665.7,3665.2,3.18082648]
[1752996056370,0.7744,3665.7,3665.2,2.72832648]
[1752996056569,0.7744,3665.7,3665.3,0.4525]
[1752996057704,0.7744,3665.7,3665.3,3.18077872]
[1752996057905,0.7744,3665.7,3665.3,0.4525]
[1752996058894,0.7744,3665.7,3665.4,0.4495]
[1752996059090,0.76913209,3665.6,3664.9,4.66]
[1752996059413,0.7744,3665.7,3665.0,3.17801202]
[1752996059718,0.7744,3665.7,3665.1,3.17793851]
[1752996059873,0.7744,3665.7,3665.2,2.72835777]
[1752996060619,0.7744,3665.7,3665.3,2.72823689]
[1752996060784,4.183,3665.6,3665.3,3.17773689]
[1752996060974,4.183,3665.6,3665.4,3.17769879]
[1752996061174,4.183,3665.6,3665.4,2.72819879]
[1752996061490,4.183,3665.6,3665.5,0.4495]
[1752996061802,0.7719,3665.9,3665.5,0.4495]
[1752996061996,4.183,3665.7,3665.5,0.4495]
[1752996062194,2.72775119,3666.1,3665.6,0.4495]
[1752996062195,0.7719,3666.1,3665.6,0.4495]
[1752996062402,4.182,3666.1,3665.7,0.4495]
[1752996062698,4.182,3666.1,3665.7,2.7279424]
[1752996063018,4.182,3666.1,3665.8,0.4495]
[1752996063372,4.182,3666.1,3665.9,0.4495]
[1752996063784,3.0,3666.3,3665.9,0.4495]
[1752996064012,3.49914793,3666.7,3665.4,5.4101]
[1752996064013,4.182,3666.2,3665.4,5.4101]
[1752996064182,4.182,3666.2,3666.0,0.4495]
[1752996064512,0.3424299,3667.9,3665.7,4.66]
[1752996064712,2.72912503,3666.9,3666.1,2.72762334]
[1752996064898,4.186,3666.8,3666.0,3.54639964]
[1752996065100,4.186,3666.8,3666.4,2.72746469]
[1752996065301,0.002,3666.9,3666.4,2.72746469]
[1752996065479,4.187,3666.8,3666.4,2.72746469]
[1752996066217,4.187,3666.8,3666.7,0.136]
[1752996066576,4.186,3666.8,3666.7,0.136]
[1752996066927,0.25719976,3666.9,3666.8,2.72717355]
[1752996067104,0.002,3666.9,3666.8,3.73571737]
[1752996068194,0.002,3666.9,3666.8,3.7629891]
[1752996068712,0.002,3666.9,3666.8,3.73571737]
[1752996069219,1e-08,3666.9,3666.8,10.4061947]
[1752996069394,1e-08,3666.9,3666.8,11.1873947]
[1752996071214,1e-08,3666.9,3666.8,15.3823947]
[1752996073091,0.002,3668.4,3668.3,2.72605839]
[1752996075118,0.7639,3669.9,3668.5,1.3048]
[1752996075288,0.7639,3669.9,3669.3,2.72528634]
[1752996075985,0.7639,3669.9,3668.6,4.199]
[1752996076182,0.4654,3669.8,3668.6,4.199]
[1752996076388,0.4654,3669.8,3668.9,2.72557829]
[1752996076596,1.2811192,3669.8,3668.9,2.72557829]
[1752996076812,4.00610995,3669.8,3669.1,2.72539613]
[1752996077190,1.2811192,3669.8,3668.9,0.4495]
[1752996077488,0.4654,3669.8,3669.2,2.72538752]
[1752996078024,3.19035795,3669.8,3669.1,2.72545902]
[1752996078405,2.72529951,3669.4,3668.6,2.72578273]
[1752996078621,0.4654,3669.4,3668.7,2.72574302]
[1752996078915,0.4654,3669.4,3668.8,2.72567466]
[1752996079100,0.39544669,3669.3,3668.6,2.72583546]
[1752996079295,0.4654,3669.4,3669.3,0.136]
[1752996079611,6.48901246,3669.6,3669.3,0.136]
[1752996079807,3.7639,3669.6,3669.3,0.136]
[1752996080007,2.72519229,3669.5,3669.3,0.136]
[1752996080211,2.72524118,3669.4,3669.3,0.136]
[1752996080407,2.72543438,3669.2,3668.4,4.201]
[1752996080721,0.7639,3669.0,3668.2,2.72611691]
[1752996080895,3.48946357,3669.0,3668.8,0.136]
[1752996081220,0.7639,3669.0,3668.8,0.136]
[1752996081435,3.48944263,3669.0,3668.8,0.136]
[1752996081616,4.15903729,3668.9,3668.8,0.136]
[1752996082036,4.15903729,3668.9,3667.9,2.72635058]
[1752996082236,0.8132,3668.8,3668.4,0.136]
[1752996082938,5.0132,3668.8,3668.7,0.136]
[1752996084235,8.20428687,3668.8,3667.5,4.252]
[1752996084412,8.20428687,3668.8,3668.5,0.136]
[1752996084413,0.77387486,3668.7,3668.5,0.136]
[1752996084841,4.97387486,3668.7,3668.5,0.136]
[1752996086129,0.4654,3668.6,3668.5,0.136]
[1752996087612,2.72606871,3668.3,3667.5,2.72665303]
[1752996087838,4.198,3668.2,3668.0,0.136]
[1752996088046,6.92413635,3668.2,3668.0,0.136]
[1752996088417,3.50630702,3668.1,3668.0,0.136]
[1752996088619,3.93470702,3668.1,3668.0,0.136]
[1752996088811,5.02058656,3668.1,3668.0,0.136]
[1752996089207,6.06397954,3668.1,3668.0,0.136]
[1752996089442,6.05675591,3668.1,3668.0,0.136]
[1752996089648,8.78296293,3668.1,3668.0,0.136]
[1752996090157,6.48515591,3668.1,3668.0,0.136]
[1752996090342,6.05575591,3668.1,3668.0,0.136]
[1752996090740,8.78196293,3668.1,3668.0,0.136]
[1752996090940,4.58496293,3668.1,3668.0,0.136]
[1752996091144,8.78196293,3668.1,3668.0,0.136]
[1752996091346,6.48415591,3668.1,3667.0,0.4537]
[1752996091521,1.28680408,3668.0,3667.4,0.136]
[1752996091825,2.72657732,3667.7,3667.4,0.136]
[1752996092026,6.92358831,3667.6,3667.4,0.136]
[1752996092218,4.197,3667.6,3667.4,0.136]
[1752996092557,7.68198655,3667.6,3667.4,0.136]
[1752996092744,8.76566906,3667.6,3667.4,0.136]
[1752996093056,6.03908251,3667.6,3667.4,0.136]
[1752996094057,5.28068251,3667.6,3667.4,0.136]
[1752996094225,4.197,3667.6,3667.4,0.136]
[1752996094435,4.195,3667.5,3667.4,0.136]
[1752996095283,4.195,3667.5,3667.4,0.5897]
[1752996095486,4.195,3667.5,3667.4,3.31642738]
[1752996096282,4.194,3667.7,3667.5,2.72658651]
[1752996096637,4.194,3667.7,3667.6,0.136]
[1752996097574,4.194,3667.7,3667.6,0.5897]
[1752996097763,4.194,3667.7,3667.6,0.136]
[1752996103915,4.88603063,3667.7,3667.6,0.136]
[1752996104279,5.64083063,3667.7,3667.6,0.136]
[1752996104484,6.06923063,3667.7,3667.6,0.136]
[1752996104916,8.79573497,3667.7,3667.6,0.136]
[1752996105820,6.06923063,3667.7,3667.6,0.136]
[1752996106119,5.64083063,3667.7,3667.6,0.136]
[1752996106830,8.79573497,3667.7,3667.4,0.137]
[1752996107521,2.72660554,3667.6,3667.4,0.137]
[1752996107719,6.91265303,3667.5,3667.4,0.137]
[1752996109018,4.186,3667.5,3667.4,0.137]
[1752996109628,6.91265303,3667.5,3667.4,0.137]
[1752996109794,8.0212526,3667.5,3667.4,0.137]
[1752996110308,5.29459957,3667.5,3667.4,0.137]
[1752996110494,3.48131199,3667.7,3667.4,0.137]
[1752996110697,4.183,3667.6,3667.4,0.137]
[1752996111029,4.183,3667.5,3667.4,0.137]
[1752996112624,4.183,3667.5,3667.4,0.5907]
[1752996113622,4.181,3667.5,3667.4,3.31742738]
[1752996113832,4.181,3667.5,3667.4,4.10512738]
[1752996114640,4.181,3667.5,3667.4,0.137]
[1752996115202,4.181,3667.5,3667.4,2.86372738]
[1752996115733,4.181,3667.5,3667.4,3.31742738]
[1752996117830,4.181,3667.5,3667.4,0.5907]
[1752996118037,4.181,3667.5,3667.4,0.001]
[1752996121749,4.178,3667.5,3667.4,0.001]
[1752996123552,4.177,3667.5,3667.4,0.001]
[1752996126849,4.175,3667.5,3667.4,0.001]
[1752996128116,4.175,3667.5,3667.4,0.137]
[1752996128952,4.175,3667.5,3667.4,0.5994]
[1752996129454,4.173,3667.5,3667.4,0.5994]
[1752996130356,3.61348651,3668.0,3667.4,0.5994]
[1752996130559,4.173,3667.9,3667.4,0.5994]
[1752996131039,1.56578269,3668.0,3667.4,0.5994]
[1752996131356,4.172,3667.9,3667.4,0.5994]
[1752996131664,4.172,3667.9,3667.4,3.32609305]
[1752996133364,3.8123,3667.8,3666.6,0.001]
[1752996133563,2.72666268,3667.5,3666.8,2.72712417]
[1752996133732,4.17,3667.4,3666.8,2.72712417]
[1752996134249,4.171,3667.3,3666.8,2.72712417]
[1752996134425,4.171,3667.3,3666.8,3.18952417]
[1752996134939,4.171,3667.3,3666.8,0.4624]
[1752996135463,0.8318,3667.1,3666.6,0.001]
[1752996135681,6.89702994,3667.0,3666.6,0.001]
[1752996135964,2.72724793,3666.7,3666.6,0.001]
[1752996136155,6.89924793,3666.7,3666.6,0.001]
[1752996136463,0.8318,3667.1,3666.6,0.001]
[1752996136681,4.172,3667.0,3666.6,0.4634]
[1752996137042,4.172,3667.0,3666.6,0.001]
[1752996137259,4.172,3667.0,3666.7,0.4624]
[1752996138056,4.172,3667.0,3666.6,0.001]
[1752996138447,4.172,3667.0,3666.6,0.4634]
[1752996142359,2.72689588,3667.2,3666.6,0.4634]
[1752996142572,4.169,3667.1,3666.6,0.4634]
[1752996143163,6.89595922,3667.1,3666.6,0.4634]
[1752996143362,0.4442,3667.0,3666.6,0.001]
[1752996143543,2.72724793,3666.7,3666.6,0.137]
[1752996143884,4.169,3666.7,3666.6,0.137]
[1752996144293,0.7861,3667.5,3666.7,0.7765]
[1752996144497,6.89574263,3667.4,3666.8,0.4624]
[1752996144666,6.89574263,3667.4,3666.9,0.136]
[1752996144869,1.05444348,3667.3,3666.9,0.136]
[1752996145188,1.05444348,3667.3,3666.9,0.5984]
[1752996145390,1.05444348,3667.3,3667.0,0.4624]
[1752996145563,4.169,3667.2,3667.0,0.4624]
[1752996145767,4.169,3667.2,3666.9,0.136]
[1752996146565,4.169,3667.2,3666.9,0.5984]
[1752996147669,4.169,3667.2,3667.0,0.4353]
[1752996147890,3.51275435,3667.5,3667.1,0.136]
[1752996148095,4.57629543,3667.4,3667.1,0.136]
[1752996149204,0.40929543,3667.4,3667.1,0.136]
[1752996149412,4.166,3667.3,3667.1,0.136]
[1752996149597,2.72687609,3667.2,3667.1,0.136]
[1752996149777,4.83090057,3667.2,3667.1,0.136]
[1752996149975,7.55777666,3667.2,3667.1,0.136]
[1752996150185,5.27520057,3667.2,3667.1,0.136]
[1752996150913,4.83090057,3667.2,3667.1,0.136]
[1752996151515,0.66490057,3667.2,3667.1,0.136]
[1752996151676,4.166,3667.2,3667.1,0.136]
[1752996153258,0.136,3667.7,3667.1,0.136]
[1752996153534,4.165,3667.6,3666.7,1.2262]
[1752996153679,4.165,3667.6,3666.7,0.7909]
[1752996153680,4.9168,3667.6,3666.7,0.7909]
[1752996153879,3.8608,3667.5,3666.6,4.661]
[1752996154082,2.72687834,3667.2,3666.6,4.661]
[1752996154382,7.68135595,3667.1,3666.6,0.001]
[1752996154581,4.9544,3667.1,3666.6,0.001]
[1752996154781,6.21125958,3667.1,3666.6,2.72831008]
[1752996155430,0.81255958,3667.1,3666.7,0.7866]
[1752996155585,2.72655499,3667.7,3666.8,3.16247355]
[1752996155780,4.168,3667.6,3666.9,2.72709918]
[1752996156036,4.168,3667.6,3667.0,0.4353]
[1752996156181,4.168,3667.6,3667.1,2.72689478]
[1752996156380,0.68944508,3667.5,3667.0,3.16230119]
[1752996156781,0.68944508,3667.5,3667.1,2.72693312]
[1752996157084,0.68944508,3667.5,3667.1,3.16223312]
[1752996157284,0.68944508,3667.5,3667.1,0.4353]
[1752996157711,0.68944508,3667.5,3666.9,2.72709233]
[1752996157921,0.75840372,3667.4,3666.7,0.7866]
[1752996158250,4.168,3667.3,3666.7,0.7866]
[1752996158732,4.168,3667.3,3666.8,2.72715234]
[1752996159823,0.4443,3667.2,3666.6,0.001]
[1752996160019,0.61571037,3667.2,3666.6,0.001]
[1752996160538,4.166,3667.1,3666.6,0.001]
[1752996160915,4.166,3667.1,3666.8,2.72712541]
[1752996161119,4.166,3667.1,3666.9,3.16239625]
[1752996161601,4.166,3667.1,3666.9,0.4353]
[1752996162731,4.166,3667.1,3666.9,3.1623898]
[1752996162908,4.166,3667.1,3666.9,0.4353]
[1752996163108,4.165,3667.0,3666.9,0.4353]
[1752996163632,4.165,3667.0,3666.9,0.5713]
[1752996164411,2.72673308,3667.4,3666.9,0.5713]
[1752996164610,4.51531331,3667.3,3666.9,0.5713]
[1752996165133,4.51531331,3667.3,3666.9,0.136]
[1752996165311,4.51531331,3667.3,3667.0,0.4353]
[1752996165717,4.51531331,3667.3,3666.9,0.136]
[1752996166012,4.163,3667.2,3666.9,0.136]
[1752996166912,6.88989204,3667.2,3666.9,0.136]
[1752996167133,0.72432054,3667.1,3666.9,0.136]
[1752996170040,3.45129349,3667.1,3666.9,0.136]
[1752996170243,0.72432054,3667.1,3666.9,0.136]
[1752996170743,0.7854,3667.0,3666.9,0.136]
[1752996170946,3.45127502,3667.1,3666.9,0.136]
[1752996171325,0.72432054,3667.1,3666.9,0.136]
[1752996171639,4.163,3667.2,3666.9,0.136]
[1752996171832,4.163,3667.2,3666.9,0.5713]
[1752996172039,0.35131331,3667.3,3667.0,0.4353]
[1752996172243,4.159,3667.1,3667.0,0.4353]
[1752996172465,0.002,3667.4,3667.0,0.4353]
[1752996172466,0.002,3667.4,3667.3,3.50050173]
[1752996173067,0.002,3667.4,3667.3,1.345]
[1752996173535,0.002,3667.4,3667.3,4.07180173]
[1752996178955,0.002,3667.4,3667.3,4.09906974]
[1752996179168,0.002,3667.4,3667.3,5.97531832]
[1752996179462,0.002,3667.4,3667.3,5.94805031]
[1752996180982,0.002,3667.4,3667.3,11.15805031]
[1752996181187,1e-08,3667.4,3667.3,14.15805031]
[1752996182792,1e-08,3667.4,3667.3,14.76405031]
[1752996182968,1e-08,3667.4,3667.3,10.60805031]
[1752996183142,1e-08,3667.4,3667.3,14.76405031]
[1752996183540,1e-08,3667.4,3667.3,21.43452764]
[1752996186779,1e-08,3667.4,3667.3,20.88452764]
[1752996188154,1e-08,3667.4,3667.3,21.43452764]
[1752996191873,1e-08,3667.4,3667.3,21.43152764]
[1752996194499,1e-08,3667.4,3667.3,17.27852764]
[1752996194707,1e-08,3667.4,3667.3,21.43152764]
[1752996197613,1e-08,3667.4,3667.3,17.27852764]
[1752996197805,1e-08,3667.4,3667.3,21.43152764]
[1752996198403,1e-08,3667.4,3667.3,17.27852764]
[1752996198710,1e-08,3667.4,3667.3,21.43152764]
[1752996199917,1e-08,3667.4,3667.3,18.31105031]
[1752996200315,1e-08,3667.4,3667.3,17.76105031]
[1752996200702,1e-08,3667.4,3667.3,17.76005031]
[1752996201317,1e-08,3667.4,3667.3,13.60805031]
[1752996201517,1e-08,3667.4,3667.3,17.76005031]
[1752996202129,1e-08,3667.4,3667.3,13.60805031]
[1752996202324,1e-08,3667.4,3667.3,13.55105031]
[1752996204300,1e-08,3667.4,3667.3,13.99895031]
[1752996206823,1e-08,3667.4,3667.3,9.39905031]
[1752996207126,1e-08,3667.4,3667.3,13.55105031]
[1752996207323,1e-08,3667.4,3667.3,9.39905031]
[1752996207532,1e-08,3667.4,3667.3,11.67480173]
[1752996207828,1e-08,3667.4,3667.3,7.52280173]
[1752996208026,0.83300001,3667.4,3667.3,2.86280173]
[1752996208324,1e-08,3667.4,3667.3,7.01480173]
[1752996209035,1e-08,3667.4,3667.3,8.88587578]
[1752996209238,1e-08,3667.4,3667.3,9.70417578]
[1752996209731,1e-08,3667.4,3667.3,17.36417578]
[1752996209927,1e-08,3667.4,3667.3,17.91417578]
[1752996210298,1e-08,3668.1,3668.0,3.27628135]
[1752996210632,1e-08,3668.1,3668.0,14.82968681]
[1752996210847,1e-08,3668.1,3668.0,15.26058681]
[1752996213404,1e-08,3668.1,3668.0,15.46364967]
[1752996217639,1e-08,3668.1,3668.0,20.12364967]
[1752996229656,1e-08,3668.1,3668.0,16.02127234]
[1752996229860,1e-08,3668.1,3668.0,7.52228135]
[1752996230058,1e-08,3668.1,3668.0,14.67328135]
[1752996231165,1e-08,3668.1,3668.0,14.67428135]
[1752996231364,1e-08,3668.1,3668.0,10.52328135]
[1752996231538,1e-08,3668.1,3668.0,14.67428135]
[1752996232774,1e-08,3668.1,3668.0,10.52328135]
[1752996232981,1e-08,3668.1,3668.0,14.67428135]
[1752996233181,1e-08,3668.1,3668.0,10.52328135]
[1752996233682,1e-08,3668.1,3668.0,14.67428135]
[1752996233882,1e-08,3668.1,3668.0,10.52328135]
[1752996234244,1e-08,3668.1,3668.0,14.67428135]
[1752996235161,1e-08,3668.1,3668.0,10.52328135]
[1752996235360,1e-08,3668.1,3668.0,14.67428135]
[1752996241998,1e-08,3668.1,3668.0,15.10738135]
[1752996242155,1e-08,3668.1,3668.0,17.22312533]
[1752996242792,1e-08,3668.1,3668.0,17.32312533]
[1752996244902,1e-08,3668.1,3668.0,13.17212533]
[1752996245086,1e-08,3668.1,3668.0,17.32312533]
[1752996245396,1e-08,3668.1,3668.0,13.17212533]
[1752996245562,1e-08,3668.1,3668.0,17.32312533]
[1752996245996,1e-08,3668.1,3668.0,13.17212533]
[1752996246300,1e-08,3668.1,3668.0,17.32312533]
[1752996250146,1e-08,3668.1,3668.0,13.17212533]
[1752996250295,1e-08,3668.1,3668.0,17.32212533]
[1752996256471,1e-08,3668.1,3668.0,17.87212533]
[1752996256633,1e-08,3668.1,3668.0,18.63012533]
[1752996261665,1e-08,3668.1,3668.0,14.48012533]
[1752996261869,1e-08,3668.1,3668.0,18.63012533]
[1752996262071,1e-08,3668.1,3668.0,8.07902533]
[1752996262227,1e-08,3668.1,3668.0,12.22802533]
[1752996263573,1e-08,3668.1,3668.0,8.07902533]
[1752996263762,1e-08,3668.1,3668.0,12.22802533]
[1752996265665,1e-08,3668.1,3668.0,13.43562533]
[1752996266235,1e-08,3668.1,3668.0,13.98562533]
[1752996267956,1e-08,3668.1,3668.0,18.64562533]
[1752996276401,1e-08,3668.1,3668.0,14.49662533]
[1752996276596,1e-08,3668.1,3668.0,18.64562533]
[1752996281697,0.002,3668.9,3668.8,2.72568687]
[1752996281901,0.002,3668.9,3668.8,9.9941642]
[1752996282065,0.002,3668.9,3668.8,10.1301642]
[1752996282441,0.002,3668.9,3668.8,11.93638062]
[1752996282589,0.002,3669.6,3669.5,2.72516691]
[1752996282796,0.002,3669.6,3669.5,6.87316691]
[1752996283009,0.002,3669.6,3669.5,7.00916691]
[1752996283701,0.002,3669.6,3669.5,11.33815729]
[1752996283930,0.002,3669.6,3669.5,11.77315729]
[1752996284828,0.002,3669.6,3669.5,12.32315729]
[1752996285216,0.7693,3670.5,3670.4,2.72449869]
[1752996285623,0.7693,3670.5,3670.4,0.136]
[1752996285819,1.1974,3670.5,3670.4,0.136]
[1752996286535,0.7693,3670.3,3669.7,4.147]
[1752996286847,0.7693,3670.1,3669.8,2.86092301]
[1752996287017,0.7693,3670.1,3669.8,7.00792301]
[1752996287018,0.4281,3670.0,3669.8,7.00792301]
[1752996287218,0.7693,3669.9,3669.8,7.00792301]
[1752996287550,1.1974,3669.9,3669.8,2.86092301]
[1752996287701,1.1974,3669.9,3669.8,0.136]
[1752996289996,1.1974,3669.9,3669.8,2.86094413]
[1752996291438,1.1974,3669.9,3669.8,0.136]
[1752996292133,1.58960515,3669.9,3669.8,0.136]
[1752996292560,1.1974,3669.9,3669.8,0.136]
[1752996293037,1.1974,3669.9,3669.8,2.86094413]
[1752996293558,0.7693,3669.9,3669.8,2.86094413]
[1752996294145,1.1974,3669.9,3669.8,2.86094413]
[1752996296145,1.1974,3669.9,3669.8,0.136]
[1752996296642,1.1974,3669.9,3669.8,2.86094413]
[1752996297874,0.7693,3669.9,3669.8,2.86094413]
[1752996298241,1.2142,3669.9,3669.8,2.86094413]
[1752996299474,1.2142,3669.9,3669.8,0.136]
[1752996299847,1.60808679,3669.9,3669.8,0.136]
[1752996300684,3.93906988,3669.9,3669.8,0.136]
[1752996300979,1.2142,3669.9,3669.8,0.136]
[1752996301366,2.72494413,3669.8,3669.1,2.72545161]
[1752996301535,0.7845,3669.7,3669.4,0.136]
[1752996301739,1.2294,3669.7,3669.4,0.136]
[1752996301955,0.4449,3669.6,3669.4,0.136]
[1752996302478,1.46601475,3669.7,3669.4,0.136]
[1752996302665,0.4449,3669.6,3669.4,0.136]
[1752996303177,1.46601475,3669.7,3669.4,0.136]
[1752996303365,0.4449,3669.5,3669.4,0.136]
[1752996305379,0.7811,3669.4,3669.1,0.136]
[1752996305575,0.4449,3669.3,3669.1,0.136]
[1752996305877,0.7811,3669.2,3669.1,0.136]
[1752996306084,3.50648973,3669.2,3669.1,0.136]
[1752996306379,3.50648973,3669.2,3668.1,3.58227733]
[1752996306380,0.7811,3669.0,3668.9,0.136]
[1752996306578,1.1762464,3669.0,3668.9,0.136]
[1752996306948,1.6211464,3669.0,3668.9,0.136]
[1752996307139,1.1762464,3669.0,3668.9,0.136]
[1752996307355,1.6211464,3669.0,3668.9,0.136]
[1752996307769,1.6211464,3669.0,3668.2,4.147]
[1752996307951,0.4449,3668.9,3668.6,0.136]
[1752996308166,0.7811,3668.7,3668.6,0.136]
[1752996308695,3.95176116,3668.7,3668.6,0.136]
[1752996309178,2.7261327,3668.2,3668.1,0.137]
[1752996309482,3.5012327,3668.2,3668.1,0.001]
[1752996309671,3.9461327,3668.2,3668.1,0.001]
[1752996309878,1.22,3668.2,3668.1,0.001]
[1752996310277,0.7751,3668.2,3668.1,0.001]
[1752996310582,4.9221,3668.6,3668.1,0.137]
[1752996310754,5.74496199,3668.6,3668.1,0.137]
[1752996310962,0.4449,3668.5,3668.1,0.137]
[1752996311180,3.17081752,3668.5,3668.1,0.137]
[1752996311487,0.4449,3668.4,3668.1,0.137]
[1752996311687,0.4449,3668.3,3668.1,0.137]
[1752996312169,1.16417066,3668.3,3668.1,0.137]
[1752996312501,0.4449,3668.2,3668.1,0.137]
[1752996312705,4.147,3668.5,3668.1,0.137]
[1752996313373,0.7751,3668.6,3668.1,0.137]
[1752996313586,4.147,3668.5,3668.1,0.137]
[1752996314278,0.7751,3668.6,3668.1,0.137]
[1752996314478,4.147,3668.5,3668.1,0.137]
[1752996314891,0.4449,3668.4,3668.1,0.137]
[1752996315302,4.5919,3668.4,3668.1,0.137]
[1752996317777,1.90074308,3668.6,3668.1,0.137]
[1752996317977,4.148,3668.5,3668.1,0.137]
[1752996318401,0.4449,3668.5,3668.1,0.137]
[1752996318577,4.148,3668.4,3668.1,0.137]
[1752996323740,4.148,3668.4,3668.2,2.72611329]
[1752996323891,1.90074308,3668.6,3668.2,2.72611329]
[1752996324096,1.90074308,3668.6,3668.3,2.72605839]
[1752996324097,4.148,3668.5,3668.3,2.72605839]
[1752996324289,3.9366,3668.9,3668.3,2.72605839]
[1752996324522,4.85870447,3668.8,3668.3,2.72605839]
[1752996324724,0.71070447,3668.8,3668.4,2.7259809]
[1752996324914,4.148,3668.7,3668.5,2.86186209]
[1752996325298,4.148,3668.7,3668.5,0.136]
[1752996325501,0.8006,3668.9,3668.5,0.136]
[1752996325724,4.148,3668.6,3668.5,0.136]
[1752996326227,0.136,3669.1,3668.5,0.136]
[1752996326533,4.28615,3669.0,3668.7,2.72575596]
[1752996326694,4.148,3669.0,3668.8,2.72568678]
[1752996326896,4.148,3669.0,3668.8,0.4608]
[1752996327096,4.148,3669.0,3668.8,2.72562373]
[1752996327523,1.2455,3669.5,3668.6,0.7943]
[1752996327726,4.148,3669.4,3669.1,2.72541461]
[1752996328745,4.148,3669.4,3668.9,2.86160902]
[1752996328746,4.148,3669.4,3669.0,2.72551428]
[1752996329049,4.148,3669.4,3668.9,0.136]
[1752996329553,4.148,3669.4,3668.9,0.5814]
[1752996329857,4.148,3669.4,3669.0,2.72553829]
[1752996330444,4.148,3669.4,3668.9,0.5814]
[1752996330645,4.148,3669.4,3669.0,2.7254729]
[1752996330824,4.148,3669.4,3669.1,0.136]
[1752996331026,0.4478,3669.3,3669.1,0.136]
[1752996331360,5.00573015,3669.4,3669.1,0.136]
[1752996331533,2.72550697,3669.1,3668.4,2.72597689]
[1752996331737,0.7787,3669.0,3668.6,0.136]
[1752996332142,0.4478,3668.9,3668.6,0.136]
[1752996332664,0.4478,3668.8,3668.6,0.136]
[1752996332842,0.7787,3669.0,3668.6,2.86182759]
[1752996333031,0.7787,3669.0,3668.6,0.136]
[1752996333431,0.7787,3669.0,3668.8,2.72567883]
[1752996333948,0.7787,3669.0,3668.6,2.86181352]
[1752996334266,0.7787,3669.0,3668.6,0.136]
[1752996334566,0.4478,3668.9,3668.6,0.136]
[1752996334928,0.4478,3668.8,3668.6,0.136]
[1752996335229,4.5948,3668.8,3668.6,0.136]
[1752996335426,0.4478,3668.7,3668.1,2.72718783]
[1752996335667,0.4478,3668.7,3668.4,0.136]
[1752996335845,4.147,3668.8,3668.4,0.136]
[1752996336168,0.4478,3668.6,3668.4,0.136]
[1752996336769,0.4478,3668.5,3668.4,0.136]
[1752996338635,1.25,3668.5,3668.4,0.136]
[1752996340928,4.9492,3668.5,3668.4,0.136]
[1752996344099,4.147,3668.5,3668.4,0.136]
[1752996345891,4.147,3668.5,3668.1,0.001]
[1752996345892,5.48875073,3668.5,3668.1,0.001]
[1752996346073,0.4478,3668.4,3668.1,0.137]
[1752996346405,5.04095073,3668.5,3668.1,0.137]
[1752996346570,1.2102,3668.3,3668.1,0.137]
[1752996346769,8.70842497,3668.3,3668.1,0.137]
[1752996346982,0.4478,3668.2,3668.1,0.137]
[1752996347593,0.4478,3668.2,3668.1,0.001]
[1752996347801,5.67051507,3668.3,3668.1,0.001]
[1752996348100,0.4478,3668.2,3668.1,0.001]
[1752996348311,1.33222253,3668.2,3668.1,0.001]
[1752996348605,0.88442253,3668.2,3668.1,0.001]
[1752996353308,1.33222253,3668.2,3668.1,0.001]
[1752996355494,5.47922253,3668.2,3668.1,0.001]
[1752996355694,8.20535523,3668.2,3668.1,0.001]
[1752996355908,5.47922253,3668.2,3668.1,0.001]
[1752996357107,7.75755523,3668.2,3668.1,0.001]
[1752996357276,8.20535523,3668.2,3668.1,0.001]
[1752996359605,8.34135523,3668.2,3668.1,0.001]
[1752996359807,7.75755523,3668.2,3668.1,0.001]
[1752996361434,3.61055523,3668.2,3668.1,0.001]
[1752996361742,7.75755523,3668.2,3668.1,0.001]
[1752996361899,5.03142253,3668.2,3668.1,0.001]
[1752996362924,7.75755523,3668.2,3668.1,0.001]
[1752996363331,5.03142253,3668.2,3668.1,0.001]
[1752996363831,0.7985,3668.6,3668.1,0.001]
[1752996364128,4.147,3668.5,3668.1,0.4313]
[1752996364435,4.147,3668.4,3668.2,0.4303]
[1752996364590,4.147,3668.3,3668.2,0.4303]
[1752996365225,2.72562717,3668.9,3668.2,0.7993]
[1752996365412,2.72562717,3668.9,3668.3,2.72600715]
[1752996365413,4.147,3668.8,3668.3,2.72600715]
[1752996365617,4.147,3668.8,3668.4,3.15627224]
[1752996365824,0.54121413,3668.9,3668.6,2.72581726]
[1752996366028,4.147,3668.8,3668.5,2.7258894]
[1752996366501,4.147,3668.7,3668.6,3.15610681]
[1752996366834,4.147,3668.8,3668.6,3.15610681]
[1752996367018,4.147,3668.8,3668.6,0.4303]
[1752996367420,0.25494872,3669.1,3668.7,1.2296]
[1752996367628,3.85773015,3669.4,3668.9,2.72559465]
[1752996367629,4.147,3669.2,3668.9,2.72559465]
[1752996367949,4.147,3669.2,3669.0,0.4303]
[1752996369956,4.147,3669.2,3669.1,0.136]
[1752996370521,4.40094872,3669.4,3669.1,0.136]
[1752996371450,3.17331545,3669.3,3668.5,3.15620011]
[1752996371659,4.146,3669.2,3668.8,0.136]
[1752996371834,7.3194107,3669.2,3668.8,0.136]
[1752996372239,8.1291107,3669.2,3668.8,0.136]
[1752996373269,2.72546894,3669.1,3668.8,0.136]
[1752996373474,4.146,3669.0,3668.8,0.136]